Cogmind - Beta 14 @@@ ROGUE MODE // 2024.08.21 @ 23:49:23 Player: TheProctologist Result: Destroyed by D-53 Grenadier with Mini Grenade Launcher Performance ------------- Evolutions (0) 0 Regions Visited (2) 400 Robots Destroyed (27) 135 Value Destroyed (565) 565 Prototype IDs (0) 0 Alien Tech Used (0) 0 Bonus (0) 0 TOTAL SCORE: 1100 Bonus ------- None Cogmind --------- Core Integrity 0/250 Matter 264/300 Energy 123/125 System Corruption 0% Temperature Cool (1) Movement Walking (260) Ox2 Location -10/Mines Parts ------- > --- POWER (1) -------- Light Ion Engine > --- PROPULSION (2) --- Aluminum Leg > --- UTILITY (2) ------ Large Storage Unit > --- WEAPON (2) ------- Hammer > --- INVENTORY (15) --- Ion Engine Light Ion Engine Cooling System Large Matter Pod (0) Hardened Light Armor Plating Hacking Suite Assault Rifle Grenade Launcher Mining Laser Peak State ------------ > --- POWER ------------ Light Ion Engine > --- PROPULSION ------- Aluminum Leg Aluminum Leg > --- UTILITY ---------- Small Storage Unit Improved Terrain Scanner > --- WEAPON ----------- Assault Rifle Assault Rifle > --- INVENTORY -------- Ion Engine Assault Rifle Mining Laser [Rating: 9] Favorites ----------- Power Light Ion Engine Engine Light Ion Engine Propulsion Aluminum Leg Leg Aluminum Leg Utility Targeting Computer Device Improved Terrain Scanner Storage Large Storage Unit Processor Targeting Computer Weapon Assault Rifle Ballistic Gun Assault Rifle Launcher Grenade Launcher Impact Weapon Hammer Build | -11 -10 -10 ------- Run | Yrd Mat Min Slots Evolved . | . . . Power . | . . . Propulsion . | . . . Utility . | . . . Weapon . | . . . Parts Attached 21 | 7 10 4 Power 3 | 1 1 1 Engine 3 | 1 1 1 Core . | . . . Reactor . | . . . Propulsion 5 | 2 2 1 Treads . | . . . Leg 5 | 2 2 1 Wheel . | . . . Hover . | . . . Flight . | . . . Utility 4 | 2 2 . Device 1 | 1 . . Storage 2 | 1 1 . Processor 1 | . 1 . Hackware . | . . . Protection . | . . . Artifact . | . . . Weapon 9 | 2 5 2 Energy Gun . | . . . Energy Cannon . | . . . Ballistic Gun 6 | 2 3 1 Ballistic Cannon . | . . . Launcher 2 | . 2 . Special Weapon . | . . . Impact Weapon 1 | . . 1 Slashing Weapon . | . . . Piercing Weapon . | . . . Special Melee Weapon . | . . . Unidentified Prototypes . | . . . Parts Lost 6 | . . 6 Power 1 | . . 1 Propulsion 2 | . . 2 Utility 1 | . . 1 Weapon 2 | . . 2 Highest Loss Streak 3 | . . 3 To Critical Strikes . | . . . Average Slot Usage (%) 99 | . 99 98 Engine 13 | . 14 13 Leg 27 | . 27 28 Storage 14 | . 14 14 Processor 13 | . 12 14 Ballistic Gun 24 | . 26 16 Impact Weapon 2 | . . 9 Peak Build Rating 9 | 9 9 8 Average Rating 7 | 5 7 7 On Entrance 5 | . 9 8 Naked Turns . | . . . Heaviest Build 29 | 13 29 29 Greatest Support 20 | 20 20 20 Greatest Overweight (x) 3 | 3 1 2 Average Overweight (x) . | . . 1 Largest Inventory Capacity 15 | 8 15 15 Average Capacity 13 | 7 13 15 Most Carried 12 | 4 11 12 Average Carried 8 | 2 7 10 Final Capacity 15 | 8 15 15 Final Carried 11 | 4 11 9 Class Distribution -------------------- 100% | Mutant Dominant Class ---------------- Mutant | -10/Materials Mutant | -10/Mines Resources | -11 -10 -10 ----------- Run | Yrd Mat Min Matter Collected 647 | 175 190 282 Remotely . | . . . Salvage Created 785 | 141 442 202 Parts 36 | 7 23 6 Haulers Intercepted . | . . . Recyclers Shooed 1 | . 1 . Parts Field Recycled . | . . . Retrieved Matter . | . . . Parts Self-Destructed . | . . . Prevented . | . . . Kills | -11 -10 -10 ------- Run | Yrd Mat Min Combat Hostiles Destroyed 16 | . 11 5 Melee 3 | . . 3 Guns 7 | . 6 1 AOE 5 | . 5 . Classes Destroyed 7 | 2 5 . Worker 1 | . 1 . Tunneler 4 | 2 . 2 Recycler 4 | 1 2 1 Operator 1 | . 1 . Watcher 1 | . 1 . Swarmer 5 | . 3 2 Grunt 11 | . 8 3 Best Kill Streak 5 | 2 5 3 Combat Bots Only 3 | . 3 2 Max Kills in Single Turn 3 | 1 3 1 Gunslinging . | . . . Exploded 2 | . 2 . Melee 1 | . . 1 Uniques/NPCs Destroyed . | . . . Combat | -11 -10 -10 -------- Run | Yrd Mat Min Hostile Shots Fired 102 | . 42 60 Missed 25 | . 9 16 Damage Taken 1091 | . 435 656 Core 262 | . 112 150 Absorbed by Shields . | . . . Regen/Repaired (Parts) 95 | . 95 . Core Remaining (%) 100 | 100 . . Volleys Fired 49 | 7 36 6 Largest 2 | 2 2 2 Hottest 50 | 40 50 40 Shots Fired 98 | 14 72 12 Gun 92 | 14 66 12 Cannon . | . . . Launcher 6 | . 6 . Special . | . . . Kinetic 92 | 14 66 12 Thermal . | . . . Explosive 6 | . 6 . Electromagnetic . | . . . Robot Hit Streak 9 | 2 8 9 Robot Miss Streak 3 | 2 3 2 Penetration Max . | . . . Secondary Targets 2 | . 2 . Max Gunslinging Chain 1 | . 1 . Shots Hit Robots 85 | 8 50 27 Core Hits 35 | 3 26 6 Critical Kills 1 | . 1 . Critical Parts Destroyed 2 | . 1 1 Critical Strikes 3 | . 2 1 Destroy 2 | . 2 . Smash 1 | . . 1 Melee Attacks 22 | . . 22 Impact 22 | . . 22 Slashing . | . . . Piercing . | . . . Sneak Attacks 4 | . . 4 Combat Hostiles 1 | . . 1 Follow-up Attacks . | . . . Damage Inflicted 2073 | 91 1238 744 Guns 794 | 79 580 135 Cannons . | . . . Explosions 654 | . 654 . Melee 597 | . . 597 Ramming 28 | 12 4 12 Kinetic 794 | 79 580 135 Thermal 309 | . 309 . Explosive 345 | . 345 . Electromagnetic . | . . . Impact 597 | . . 597 Slashing . | . . . Piercing . | . . . Highest Corruption . | . . . Average Corruption . | . . . Corruption Purged . | . . . Corruption Blocked . | . . . Overload Shots . | . . . Overflow Damage 109 | . . 109 Projectiles . | . . . Explosions . | . . . Melee 109 | . . 109 Knockbacks 2 | . . 2 Impact 2 | . . 2 Kinetic . | . . . Secondary . | . . . Self-Inflicted Damage 31 | . 31 . Shots 2 | . 2 . Rammed . | . . . Targets Rammed 10 | 1 2 7 Kicked 10 | 1 2 7 Crushed . | . . . Highest Temperature 9 | . 6 9 Average Temperature 3 | . 2 4 Received Heat Transfer 474 | . 174 300 Siege Activations . | . . . Robots Corrupted 3 | . . 3 Combat Hostiles 1 | . . 1 Parts Fried 3 | . . 3 Impact Corruptions 7 | . . 7 Robots Melted . | . . . Combat Hostiles . | . . . Parts Melted . | . . . Heat Transferred 150 | . 150 . Parts Sabotaged . | . . . Parts Stolen . | . . . Parts Stripped . | . . . Power Chain Reactions . | . . . Alert | -11 -10 -10 ------- Run | Yrd Mat Min Peak Influence 310 | 15 310 201 Initial 76 | . 9 76 Average 120 | 6 127 125 Maximum Alert Level 1 | . 1 1 Low Security (%) 79 | 100 76 85 Level 1 20 | . 23 14 Level 2 . | . . . Level 3 . | . . . Level 4 . | . . . Level 5 . | . . . High Security . | . . . Max Security . | . . . Squads Dispatched 2 | . 2 . Investigation 1 | . 1 . Extermination . | . . . Reinforcement 1 | . 1 . Assault . | . . . Garrison . | . . . Intercept . | . . . Searches Triggered . | . . . Construction Impeded . | . . . Haulers Reinforced . | . . . Active Scanning Responses . | . . . Cargo Convoy Interrupts . | . . . Stealth | -11 -10 -10 --------- Run | Yrd Mat Min Distress Signals 2 | . 2 . Communications Jammed . | . . . Distress Signals . | . . . Times Spotted 31 | . 21 10 Peak Tracking Total 7 | . 5 7 Tactical Retreats 4 | . 2 2 Traps | -11 -10 -10 ------- Run | Yrd Mat Min Traps Triggered 2 | . 2 . Indirectly . | . . . Trap Hack Attempts . | . . . Triggered . | . . . Disarmed . | . . . Reprogrammed . | . . . Reused . | . . . Traps Extracted . | . . . Installed . | . . . Triggered . | . . . Machines | -11 -10 -10 ---------- Run | Yrd Mat Min Machines Disabled 3 | . 3 . Max in Single Turn 2 | . 2 . Machines Repaired . | . . . Machines Dismantled . | . . . Machines Sabotaged . | . . . Overloaded Fab Kills . | . . . Hacking | -11 -10 -10 --------- Run | Yrd Mat Min Machines Accessed 5 | . 5 . Terminals 4 | . 4 . Fabricators . | . . . Repair Stations 1 | . 1 . Recycling Units . | . . . Scanalyzers . | . . . Garrison Access . | . . . Total Hacks 17 | . 17 . Successful 11 | . 11 . Failed 6 | . 6 . Catastrophic 2 | . 2 . Database Lockouts . | . . . Manual 5 | . 5 . Terminals 12 | . 12 . Fabricators . | . . . Repair Stations 5 | . 5 . Recycling Units . | . . . Scanalyzers . | . . . Garrison Access . | . . . Terminal Hacks 4 | . 4 . Robot Analysis 1 | . 1 . Branch Access Points 1 | . 1 . Alert Level 1 | . 1 . Maintenance Status 1 | . 1 . Fabricator Hacks . | . . . Repair Station Hacks 4 | . 4 . Scan Component 2 | . 2 . Repair 2 | . 2 . Recycling Unit Hacks . | . . . Scanalyzer . | . . . Garrison Access Hacks . | . . . Unauthorized Hacks 3 | . 3 . Terminals 3 | . 3 . Track 1 | . 1 . Assimilate 1 | . 1 . Botnet 1 | . 1 . Fabricators . | . . . Repair Stations . | . . . Recycling Units . | . . . Scanalyzers . | . . . Garrison Access . | . . . Data Cores Recovered . | . . . Used . | . . . Hacking Detections 4 | . 4 . Full Trace Events 1 | . 1 . Feedback Events . | . . . Feedback Blocked . | . . . Robot Schematics Acquired . | . . . Robots Built . | . . . Authchips . | . . . Time . | . . . Total Robot Build Rating . | . . . Part Schematics Acquired . | . . . Parts Built . | . . . Authchips . | . . . Time . | . . . Total Part Build Rating . | . . . Parts Repaired 2 | . 2 . Time 52 | . 52 . Parts Recycled . | . . . Recycled Matter . | . . . Retrieved Matter . | . . . Retrieved Components . | . . . Parts Scanalyzed . | . . . Part Schematics Acquired . | . . . Parts Damaged . | . . . Bothacking | -11 -10 -10 ------------ Run | Yrd Mat Min Used RIF Installer . | . . . Robots Hacked . | . . . Non-combat . | . . . Combat . | . . . Robot Hacks Applied . | . . . Relay Couplers Released . | . . . Fabnet Peak Effective % . | . . . Robots Rewired . | . . . Allies Hacked . | . . . Hacks Repelled . | . . . Allies | -11 -10 -10 -------- Run | Yrd Mat Min Total Allies . | . . . Largest Group . | . . . Highest-Rated Group . | . . . Highest-Rated Ally . | . . . Total Orders . | . . . Ally Attacks . | . . . Total Damage . | . . . Kills . | . . . Allies Corrupted . | . . . Allies Melted . | . . . Intel | -11 -10 -10 ------- Run | Yrd Mat Min Robot Analysis Total 1 | . 1 . Derelict Logs Recovered . | . . . Drone Launches . | . . . Drone Recoveries . | . . . Exploration | -11 -10 -10 ------------- Run | Yrd Mat Min Turns Passed 1881 | 103 1355 423 Spaces Moved 917 | 58 692 167 Core 14 | 14 . . Treads . | . . . Legs 903 | 44 692 167 Wheels . | . . . Hover . | . . . Flight . | . . . Fastest Speed 50 | 50 120 190 Average Speed 169 | 116 168 190 Slowest Speed 260 | 200 190 260 Overloaded Moves . | . . . Propulsion Burnouts . | . . . Robots Hopped . | . . . Cave-ins Triggered . | . . . Exploration Rate (%) 43 | 4 88 38 Regions Visited 2 Branch Regions 1 Pre-discovered Areas . | . . . Known Exits Taken 1 | . 1 . Unknown Exits Taken 1 | 1 . . Scrap Searched 2 | . . 2 Spaces Dug . | . . . Terrain Destroyed 64 | . 64 . Melee . | . . . Projectile . | . . . AOE 64 | . 64 . Terrain Rammed . | . . . Walls Destroyed . | . . . Machines Disabled . | . . . Actions | -11 -10 -10 --------- Run | Yrd Mat Min Total 1101 | 76 808 217 Wait 70 | . 60 10 Move 916 | 58 691 167 Hop . | . . . Pick Up 10 | 4 6 . Fast Attach 11 | 7 3 1 Attach 3 | . . 3 Detach 2 | . 1 1 Swap 7 | . 7 . Drop 2 | . 2 . Fire 49 | 7 36 6 Melee 22 | . . 22 Ram . | . . . Kick 9 | . 2 7 Crush . | . . . Escape Stasis . | . . . Rewire . | . . . Trap . | . . . Miscellaneous . | . . . Route ------- -11/Scrapyard -10/Materials (discovered 5 exits: [*Mat x3] / *Min x2) -10/Mines (discovered 1 exit: [*Mat]) History --------- Turn | Location | Event 20 | -11/Scrapyard | Discovered new exit (range 16) 104 | -11/Scrapyard | Entered Materials 301 | -10/Materials | Build established: Mutant 388 | -10/Materials | Discovered new exit (range 12) 406 | -10/Materials | Discovered new exit (range 14) 676 | -10/Materials | Identified exit to Mines 906 | -10/Materials | Discovered new exit (range 7) 1009 | -10/Materials | Repaired Aluminum Leg 1036 | -10/Materials | Repaired Aluminum Leg 1372 | -10/Materials | Discovered new exit (range 7) 1459 | -10/Materials | Entered Mines 1535 | -10/Mines | Core integrity fell below 50% 1696 | -10/Mines | Discovered new exit (range 6) 1862 | -10/Mines | Assembled infested the area 1867 | -10/Mines | Assisted by a Guerilla fighting off Assembled 1881 | -10/Mines | Core integrity fell below 20% 1882 | -10/Mines | Destroyed by D-53 Grenadier with Mini Grenade Launcher Last Messages --------------- 01787_ R-06 Scavenger collects Heat Sink. 01792_ G-34 Mercenary knocked back. 01796_ G-34 Mercenary destroyed. 01799_ Acquired 35 matter. 01824_ K-01 Serf collects debris. 01862_ ALERT: Infestation in the mines, dispatching Demolisher response squad. 01867_ A derelict emerges from the shadows: "You need to get out of here! I've been tracking a group of Assembled to figure out where they're coming from, and they're closing on this area, come on!" 01870_ D2-BQC(h): "I'll hold them off! Go on ahead or try to find another way!" 01880_ C-30 ARC bursts open, deploying its payload. 01880_ D-53 Grenadier unfolds itself. 01880_ Aluminum Leg destroyed. 01882_ Targeting Computer destroyed. 01882_ Assault Rifle destroyed. Map ----- +----------------------------------------------------+ | ??????????????????????????# ##?????????????????? | | ??????????????????????????# ####??????????????? | | ??????????????????????????## ##?????????????? | | ???????????????????????????# ##????????????? | | ??????????????????????????## ####?????????? | | ??????????????????????????# #?????????? | | ?????????????????????????# ### #?????????? | | ????????????????????????# ####### #?????????? | | ????????????????????????# #??????### ###### #? | | ????????????????????????# #??????#### #? | | ????????????????????????##????####! ##### #? | | ??????????????????????????????# ####?????????? | | ??????????????????????????????# #????????????? | | ??????????????????????????????# ####????????????? | | ??????????????????????????????# #???????????????? | | ??????????????????????????????# ##??????????????? | | ??????????????????????????????# ##??????####???? | | ??????????????????????????????# ##????## ##??? | | ??????????????????????????????## ##???# #??? | | ??????????????????????????????## #??## #?? | | ?????????????################## #?## ### | | ????????#$ ##?# %= | | ?????????????######### ### ###?## ## | | ?????????????????????# #?####??## ### #? | | ?????????????????????# #???????# ###?# #? | | ?????????????????????# @ #???????# ##???# #? | | ????????????????# # ######??# ##???# #? | | ???????????? ##?# #???# #? | | ???????????? ### #???#!#? | | ??????????? ##### #???# ## | | ?????????????????# #### #d%d ###### !! | | ?????????????????# ##????####### #?# [ | | ?????????????????# ????????????## ### # | | ?????????????????# ??????????##### ## # | | ?????????????????#???????# # | | ?????????????????????????# #### | | ?????????????????????????# ##### ## #??? | | ???????????????????????????????## #### #??? | | ????????????????????????????????#######??## #??? | | ??????????????????????????????????????????# #??? | | ??????????????????????????????????????????## ##?? | | ???????????????????????????????????????????# #?? | | ???????????????????????????????????????????#####?? | | ?????????????????????????????????????????????????? | | ?????????????????????????????????????????????????? | | ?????????????????????????????????????????????????? | | ?????????????????????????????????????????????????? | | ?????????????????????????????????????????????????? | | ?????????????????????????????????????????????????? | | ?????????????????????????????????????????????????? | +----------------------------------------------------+ Best States ------------- Heat Dissipation 25 Energy Generation 10 Energy Capacity 250 Matter Stores 259 Matter Capacity 300 Sight Range 16 Terrain Scan Range 16 Terrain Scan Density 10 Evasion (%) 55 Targeting Accuracy 5 Item Schematics ----------------- None Robot Schematics ------------------ None Fabricated ------------ Nothing Alien Tech Used ----------------- None Achievements -------------- None Challenges ------------ None Game ------ Seed FieldSpliceReactor Manual? 0 Play Time 00:14:33 Cumulative 48.4 hours Start 2024.08.21 @ 23:34:25 End 2024.08.21 @ 23:49:23 Sessions 1 Manual Loads 0 Difficulty Rogue Special Mode None Game No. 63 Rogue 63 Adventurer 0 Explorer 0 Win Type - Total 0 Types 0/0/0/0/0/0/0/0/0 Lore% 14 Gallery% 26 Achievement% 26 Wizard Run 0 Options --------- Layout 1 ASCII 0 Keyboard 0 Movement Numpad Keybinds 0 Fullscreen 1 Font 32/SmallcapsGlow Map View 50x40 Zoom Use 13% Tactical HUD 1 Map Filters NONE Filters NONE Steam 1 RUN: abc0f0e6-a457-4ac4-a42d-2a7d8a676366